{"text_format":"1","workbook":"xlsx","n_sheets":4,"sheets":["Accueil","Liste de choix menus","Récapitulatif saisie des menus","Samuel Butcher"],"not_rendered":{"charts":0,"images":2,"macros":1,"external_links":0,"defined_names":0,"comments":0,"pivot_tables":0},"unopened":[],"bounds":{"document_bytes":16777216,"sheet_cells":100000,"rows_first":2000,"rows_last":500,"rows_between":2000,"halvings":0,"cell_chars":16384,"cell_head_chars":4096},"cells_cut":0,"cells_raw":0,"read":"whole","date_system":"1900"}

{"sheet":"Accueil","index":0,"n_rows":8,"n_cols":1,"rows_kept":8,"cut":false,"hidden":false,"merged":[]}
[]
[]
[]
[]
[]
[]
[]
["Feuille Accueil"]

{"sheet":"Liste de choix menus","index":1,"n_rows":55,"n_cols":26,"rows_kept":55,"cut":false,"hidden":false,"merged":[]}
["Codes légumes","Légumes","Jours légumes","Conditionnement légumes","Destination légumes",null,"Code légume deux","Légume deux","Jour légume deux","Conditionnement légume deux","Destination légume deux",null,"Codes viandes","Viandes","Jours viandes","Conditionnement viandes","Destination viandes",null,"Codes desserts","Desserts","Jours desserts","Conditionnement desserts","Destination desserts",null,"Nature du produit","Colonne code du produit"]
["LD02","Chips","Dimanche midi et soir","1 paquet pour 2 repas","Menus journaliers",null,"LD01","Asperges","Dimanche soir","1 boîte ou 1 bocal pour 1 repas","Menus journaliers",null,"V01","Bifteck haché de bœuf","Lundi à dimanche soirs","1 paquet pour 2 repas","Menus journaliers",null,"D01","Ananas","Samedi et dimanche midis et soirs","Unité : 1 pour 4 repas","Menus Journaliers",null,"Desserts","S"]
["LD03","Frites","Dimanche midi","20 frites par repas","Menus journaliers",null,null,null,null,null,null,null,"V02","Bifteck haché de cheval","Lundi à dimanche soirs","125 grammes par repas","Menus journaliers",null,"D02","Autres fruits","Samedi et dimanche midis et soirs","Unité : 2 à 4 par repas","Menus Journaliers",null,"Légume deux","G"]
["LD04","Haricots verts","Dimanche midi et soir","1 boîte pour 2 repas","Menus journaliers",null,null,null,null,null,null,null,"V03","Bifteck haché de veau","Lundi à dimanche soirs","1 paquet pour 2 repas","Menus journaliers",null,"D03","Avocats","Samedi et dimanche midis et soirs","Unité : 1 par repas","Menus Journaliers",null,"Légumes","A"]
["LLM01","Cassoulet","Lundi et mardi soirs","1 boîte pour 2 repas","Menus journaliers",null,null,null,null,null,null,null,"V04","Bouché à la reine","Lundi à dimanche soirs","1 paquet pour 2 repas","Menus journaliers",null,"D04","Bananes","Samedi et dimanche midis et soirs","Unité : 1 par repas","Menus Journaliers",null,"Viandes","M"]
["LLM02","Choucroute","Lundi et mardi soirs","1 boîte pour 2 repas","Menus journaliers",null,null,null,null,null,null,null,"V05","Boudin","Lundi à dimanche soirs","1 paquet pour 2 repas","Menus journaliers",null,"D05","Clémentines","Samedi et dimanche midis et soirs","Unité : 2 à 4 par repas","Menus Journaliers"]
["LLM03","Chou-fleur","Lundi et mardi soirs","Unité : 1 pour 2 repas","Menus journaliers",null,null,null,null,null,null,null,"V06","Cervelas","Lundi à dimanche soirs","1 paquet pour 2 repas","Menus journaliers",null,"D06","Crème","Samedi et dimanche midis et soirs","1 boîte de 1, 2 ou 3 sachets.  1 sachet pour 4 repas","Menus Journaliers"]
["LLM04","Choux de bruxelles","Lundi et mardi soirs","1 boîte pour 2 repas","Menus journaliers",null,null,null,null,null,null,null,"V07","Cœur","Lundi à dimanche soirs","1 paquet pour 2 repas","Menus journaliers",null,"D07","Dattes","Samedi et dimanche midis et soirs","1 paquet pour 4 repas","Menus Journaliers"]
["LLM05","Couscous","Lundi et mardi soirs","25 grammes par repas","Menus journaliers",null,null,null,null,null,null,null,"V08","Croque-monsieur","Lundi à dimanche soirs","1 paquet pour 2 repas","Menus journaliers",null,"D08","Figues","Samedi et dimanche midis et soirs","1 paquet pour 4 repas","Menus Journaliers"]
["LLM06","Endives","Lundi et mardi soirs","1 boîte pour 2 repas","Menus journaliers",null,null,null,null,null,null,null,"V09","Foie","Lundi à dimanche soirs","1 paquet pour 2 repas","Menus journaliers",null,"D09","Fromage blanc","Samedi et dimanche midis et soirs","1 pack de 4 pots. 1 pot par repas","Menus Journaliers"]
["LLM07","Haricots verts","Lundi et mardi soirs","1 boîte pour 2 repas","Menus journaliers",null,null,null,null,null,null,null,"V10","Fromage de tête","Lundi à dimanche soirs","1 paquet pour 2 repas","Menus journaliers",null,"D10","Fruits au sirop","Samedi et dimanche midis et soirs","1 boîte pour 2 repas","Menus Journaliers"]
["LLM08","Maïs","Lundi et mardi soirs","1 boîte pour 2 repas","Menus journaliers",null,null,null,null,null,null,null,"V11","Jambon","Lundi à dimanche soirs","1 paquet pour 2 repas","Menus journaliers",null,"D11","Fruits de saison","Samedi et dimanche midis et soirs","Unité : 2 à 4 par repas","Menus Journaliers"]
["LLM09","Paella","Lundi et mardi soirs","1 paquet pour 2 repas","Menus journaliers",null,null,null,null,null,null,null,"V12","Jambonneau","Lundi à dimanche soirs","1 paquet pour 2 repas","Menus journaliers",null,"D12","Gâteau de riz","Samedi et dimanche midis et soirs","1 pack de 4 pots. 1 pot par repas","Menus Journaliers"]
["LLM10","Poireau","Lundi et mardi soirs","Unité : 1 par repas","Menus journaliers",null,null,null,null,null,null,null,"V13","Mortadelle","Lundi à dimanche soirs","1 paquet pour 2 repas","Menus journaliers",null,"D13","Gâteaux samedi et dimanche","Samedi et dimanche midis et soirs","1 boîte pour 2 repas","Menus Journaliers"]
["LLM11","Pomme de terre","Lundi et mardi soirs","Unité : 1 par repas","Menus journaliers",null,null,null,null,null,null,null,"V14","Œufs","Lundi à dimanche soirs","1 boîte de 6 œufs. 3 œufs par repas","Menus journaliers",null,"D14","Mousse au chocolat","Samedi et dimanche midis et soirs","1 pack de 4 pots. 1 pot par repas","Menus Journaliers"]
["LLM12","Purée","Lundi et mardi soirs","25 grammes par repas","Menus journaliers",null,null,null,null,null,null,null,"V15","Pizza","Lundi à dimanche soirs","1 paquet pour 2 repas","Menus journaliers",null,"D15","Oranges","Samedi et dimanche midis et soirs","Unité : 1 par repas","Menus Journaliers"]
["LLM13","Quenelles","Lundi et mardi soirs","1 boîte pour 2 repas","Menus journaliers",null,null,null,null,null,null,null,"V16","Poisson","Lundi à dimanche soirs","Unité : 1 par repas","Menus journaliers",null,"D16","Petits suisses","Samedi et dimanche midis et soirs","1 pack de 6 pots. 3 pots par repas","Menus Journaliers"]
["LLM14","Riz","Lundi et mardi soirs","25 grammes par repas","Menus journaliers",null,null,null,null,null,null,null,"V17","Quiche lorraine","Lundi à dimanche soirs","1 paquet pour 2 repas","Menus journaliers",null,"D17","Pomme","lundi à vendredi soirs","1 sachet de 2 ou 3 kilogrammes. 1 pomme par repas","Menus Journaliers"]
["LMJ01","Macédoine de légumes","Mercredi et jeudi soirs","1 boîte pour 2 repas","Menus journaliers",null,null,null,null,null,null,null,"V18","Roulade à la pistache","Lundi à dimanche soirs","3 tranches par repas","Menus journaliers",null,"D18","Pruneaux","Samedi et dimanche midis et soirs","1 paquet pour 4 repas","Menus Journaliers"]
["LMJ02","Petits pois","Mercredi et jeudi soirs","1 boîte pour 2 repas","Menus journaliers",null,null,null,null,null,null,null,"V19","Roulé au fromage","Lundi à dimanche soirs","1 paquet pour 2 repas","Menus journaliers",null,"D19","Riz","Samedi et dimanche midis et soirs","1 pack de 4 pots. 1 pot par repas","Menus Journaliers"]
["LMJ03","Petits pois et jeunes carottes","Mercredi et jeudi soirs","1 boîte pour 2 repas","Menus journaliers",null,null,null,null,null,null,null,"V20","Salami","Lundi à dimanche soirs","1 paquet pour 2 repas","Menus journaliers",null,"D20","Semoule de blé","Samedi et dimanche midis et soirs","1 pack de 4 pots. 1 pot par repas","Menus Journaliers"]
["LMJ04","Ratatouille","Mercredi et jeudi soirs","1 boîte pour 2 repas","Menus journaliers",null,null,null,null,null,null,null,"V21","Saucisses","Lundi à dimanche soirs","1 paquet pour 2 repas","Menus journaliers",null,"D21","Tapioca","Samedi et dimanche midis et soirs","25 ou 50 grammes par repas","Menus Journaliers"]
["LMJ05","Raviolis","Mercredi et jeudi soirs","1 boîte pour 2 repas","Menus journaliers",null,null,null,null,null,null,null,"V22","Saucisson","Lundi à dimanche soirs","1 morceau de 400 grammes (Leclerc) pour 3 repas","Menus journaliers",null,"D22","Yaourts","Samedi et dimanche midis et soirs","1 pack de 4 pots. 1 pot par repas","Menus Journaliers"]
["LMJ06","Tomates pelées","Mercredi et jeudi soirs","1 boîte pour 2 repas","Menus journaliers",null,null,null,null,null,null,null,"V23","Tête persillée","Lundi à dimanche soirs","1 paquet pour 2 repas","Menus journaliers",null,"DMR01","Pomme","lundi à vendredi midis retraite","1 sachet de 2 ou 3 kilogrammes. 1 pomme par repas","Menus midi retraite"]
["LMR01","Asperges","Lundi à vendredi midis retraite","1 boîte ou 1 bocal pour 1 repas","Menus midi retraite",null,null,null,null,null,null,null,"V24","Tête roulée","Lundi à dimanche soirs","1 paquet pour 2 repas","Menus journaliers"]
["LMR02","Avocat","Lundi à vendredi midis retraite","Unité : 1 par repas","Menus midi retraite",null,null,null,null,null,null,null,"V25","Thon","Lundi à dimanche soirs","1 boîte pour 1 repas","Menus journaliers"]
["LMR03","Carottes","Lundi à vendredi midis retraite","Unité : 2 par repas","Menus midi retraite",null,null,null,null,null,null,null,"V26","Viande cassoulet","Lundi et mardi soirs","1 boîte pour 2 repas","Menus journaliers"]
["LMR04","Céleri","Lundi à vendredi midis retraite","Unité : 1 branche par repas","Menus midi retraite",null,null,null,null,null,null,null,"V27","Viande choucroute","Lundi et mardi soirs","1 boîte pour 2 repas","Menus journaliers"]
["LMR05","Champignons","Lundi à vendredi midis retraite","1 boîte pour 1 repas","Menus midi retraite",null,null,null,null,null,null,null,"V28","Viande paella","Lundi et mardi soirs","1 boîte pour 2 repas","Menus journaliers"]
["LMR06","Concombre","Lundi à vendredi midis retraite","Unité : 1 par repas","Menus midi retraite",null,null,null,null,null,null,null,"V29","Agneau","Samedi et dimanche midis","1 tranche par repas","Menus journaliers"]
["LMR07","Couscous","Lundi à vendredi midis retraite","25 grammes par repas","Menus midi retraite",null,null,null,null,null,null,null,"V30","Bœuf","Samedi et dimanche midis","1 tranche par repas","Menus journaliers"]
["LMR08","Maïs","Lundi à vendredi midis retraite","1 boîte pour 2 repas","Menus midi retraite",null,null,null,null,null,null,null,"V31","Cheval","Samedi et dimanche midis","1 tranche par repas","Menus journaliers"]
["LMR09","Pâtes à la sauce tomates","Lundi à vendredi midis retraite","5 cuillères par repas","Menus midi retraite",null,null,null,null,null,null,null,"V32","Dinde","Samedi et dimanche midis","1 tranche par repas","Menus journaliers"]
["LMR10","Pâtes au beurre","Lundi à vendredi midis retraite","5 cuillères par repas","Menus midi retraite",null,null,null,null,null,null,null,"V33","Poisson","Samedi et dimanche midis","Unité : 1 par repas","Menus journaliers"]
["LMR11","Poireau","Lundi à vendredi midis retraite","Unité : 1 par repas","Menusmi",null,null,null,null,null,null,null,"V34","Porc","Samedi et dimanche midis","1 tranche par repas","Menus journaliers"]
["LMR12","Pomme de terre","Lundi à vendredi midis retraite","Unité : 1 par repas","Menus midi retraite",null,null,null,null,null,null,null,"V35","Veau","Samedi et dimanche midis","1 tranche par repas","Menus journaliers"]
["LMR13","Purée","Lundi à vendredi midis retraite","25 grammes par repas","Menus midi retraite",null,null,null,null,null,null,null,"VMR01","Rôti d'agneau","Lundi à vendredi midis retraite","1 morceau de 500 grammes pour 5 repas","Menus midi retraite"]
["LMR14","Radis","Lundi à vendredi midis retraite","1 botte ou 1 sachet pour 2 repas","Menus midi retraite",null,null,null,null,null,null,null,"VMR02","Rôti de bœuf","Lundi à vendredi midis retraite","1 morceau de 500 grammes pour 5 repas","Menus midi retraite"]
["LMR15","Riz","Lundi à vendredi midis retraite","25 grammes par repas","Menus midi retraite",null,null,null,null,null,null,null,"VMR03","Rôti de cheval","Lundi à vendredi midis retraite","1 morceau de 500 grammes pour 5 repas","Menus midi retraite"]
["LMR16","Salade","Lundi à vendredi midis retraite","Unité : 1 tête pour 1 repas","Menus midi retraite",null,null,null,null,null,null,null,"VMR04","Rôti de porc","Lundi à vendredi midis retraite","1 morceau de 500 grammes pour 5 repas","Menus midi retraite"]
["LMR17","Tomates ","Lundi à vendredi midis retraite","Unité : 2 par repas","Menus midi retraite",null,null,null,null,null,null,null,"VMR05","Rôti de veau","Lundi à vendredi midis retraite","1 morceau de 500 grammes pour 5 repas","Menus midi retraite"]
["LS01","Pâtes à la sauce tomates","Samedi midi et soir","5 cuillères par repas","Menus journaliers"]
["LS02","Pâtes au beurre","Samedi midi et soir","5 cuillères par repas","Menus journaliers"]
["LS03","Pâtes au fromage râpé","Samedi midi et soir","5 cuillères par repas","Menus journaliers"]
["LV01","Asperges","Vendredi soir","1 boîte ou 1 bocal par repas","Menus journaliers"]
["LV02","Avocat","Vendredi soir","Unité : 1 par repas","Menus journaliers"]
["LV03","Betterave rouge","Vendredi soir","1 paquet de 3 ou 4 betteraves. 1 betterave par repas","Menus journaliers"]
["LV04","Carottes","Vendredi soir","Unité : 2 par repas","Menus journaliers"]
["LV05","Céleri","Vendredi soir","Unité : 1 branche par repas","Menus journaliers"]
["LV06","Champignons","Vendredi soir","1 boîte pour 1 repas","Menus journaliers"]
["LV07","Concombre","Vendredi soir","Unité : 1 par repas","Menus journaliers"]
["LV08","Radis","Vendredi soir","1 botte ou 1 sachet pour 1 repas","Menus journaliers"]
["LV09","Salade","Vendredi soir","Unité : 1 tête pour 1 repas","Menus journaliers"]
["LV10","Salsifis","Vendredi soir","1 boîte pour 1 repas","Menus journaliers"]
["LV11","Tomates ","Vendredi soir","Unité : 2 par repas","Menus journaliers"]

{"sheet":"Récapitulatif saisie des menus","index":2,"n_rows":13,"n_cols":30,"rows_kept":13,"cut":false,"hidden":false,"merged":[]}
["Date du menu","Codes légumes","Légumes","Jours légumes","Conditionnement légumes","Destination légumes","Quantité légumes","Code légume deux","Légume deux","Jour légume deux","Conditionnement légume deux","Destination légume deux","Quantité légume deux","Codes viandes","Viandes","Jours viandes","Conditionnement viandes","Quantité viandes","Codes desserts","Desserts","Jours desserts","Conditionnement desserts","Destination desserts","Quantité desserts","Observations","Numéro du menu","Période concernée","Nature du menu","Nature produit","Colonne nature produit"]
["2017-01-02","LMR09","Pâtes à la sauce tomates","Lundi à vendredi midis retraite","5 cuillères par repas","Menus midi retraite",5,null,null,null,null,null,null,"VMR04","Rôti de porc","Lundi à vendredi midis retraite","Morceau de 500 grammes pour 5 repas",100,"DMR01","Pomme","Lundi à vendredi midis retraite","1 sachet de 2 ou 3 kilogrammes. 1 pomme par repas","Menus midi retraite",1,null,null,"Janvier 2017","Menus journaliers","Desserts","S"]
["2017-01-03","LMR10","Pâtes au beurre","Lundi à vendredi midis retraite","5 cuillères par repas","Menus midi retraite",5,null,null,null,null,null,null,"VMR04","Rôti de porc","Lundi à vendredi midis retraite","Morceau de 500 grammes pour 5 repas",100,"DMR01","Pomme","Lundi à vendredi midis retraite","1 sachet de 2 ou 3 kilogrammes. 1 pomme par repas","Menus midi retraite",1,null,null,"Février 2017","Menus midi retraite","Légume deux","H"]
[null,null,null,null,null,null,null,null,null,null,null,null,null,null,null,null,null,null,null,null,null,null,null,null,null,null,"Mars 2017","Menus viandes week-end","Légumes","B"]
[null,null,null,null,null,null,null,null,null,null,null,null,null,null,null,null,null,null,null,null,null,null,null,null,null,null,"Avril 2017",null,"Viandes","N"]
[null,null,null,null,null,null,null,null,null,null,null,null,null,null,null,null,null,null,null,null,null,null,null,null,null,null,"Mai 2017"]
[null,null,null,null,null,null,null,null,null,null,null,null,null,null,null,null,null,null,null,null,null,null,null,null,null,null,"Juin 2017"]
[null,null,null,null,null,null,null,null,null,null,null,null,null,null,null,null,null,null,null,null,null,null,null,null,null,null,"Juillet 2017"]
[null,null,null,null,null,null,null,null,null,null,null,null,null,null,null,null,null,null,null,null,null,null,null,null,null,null,"Août 2017"]
[null,null,null,null,null,null,null,null,null,null,null,null,null,null,null,null,null,null,null,null,null,null,null,null,null,null,"Septembre 2017"]
[null,null,null,null,null,null,null,null,null,null,null,null,null,null,null,null,null,null,null,null,null,null,null,null,null,null,"Octobre 2017"]
[null,null,null,null,null,null,null,null,null,null,null,null,null,null,null,null,null,null,null,null,null,null,null,null,null,null,"Novembre 2017"]
[null,null,null,null,null,null,null,null,null,null,null,null,null,null,null,null,null,null,null,null,null,null,null,null,null,null,"Décembre 2017"]

{"sheet":"Samuel Butcher","index":3,"n_rows":365,"n_cols":2,"rows_kept":365,"cut":false,"hidden":false,"merged":[]}
["2017-01-01",{"$f":"queljourférié($A1)","v":"Jour de l'an"}]
["2017-01-02",{"$f":"queljourférié($A2)","v":""}]
["2017-01-03",""]
["2017-01-04",""]
["2017-01-05",""]
["2017-01-06",""]
["2017-01-07",""]
["2017-01-08",""]
["2017-01-09",""]
["2017-01-10",""]
["2017-01-11",""]
["2017-01-12",""]
["2017-01-13",""]
["2017-01-14",""]
["2017-01-15",""]
["2017-01-16",""]
["2017-01-17",""]
["2017-01-18",""]
["2017-01-19",""]
["2017-01-20",""]
["2017-01-21",""]
["2017-01-22",""]
["2017-01-23",""]
["2017-01-24",""]
["2017-01-25",""]
["2017-01-26",""]
["2017-01-27",""]
["2017-01-28",""]
["2017-01-29",""]
["2017-01-30",""]
["2017-01-31",""]
["2017-02-01",""]
["2017-02-02",""]
["2017-02-03",""]
["2017-02-04",""]
["2017-02-05",""]
["2017-02-06",""]
["2017-02-07",""]
["2017-02-08",""]
["2017-02-09",""]
["2017-02-10",""]
["2017-02-11",""]
["2017-02-12",""]
["2017-02-13",""]
["2017-02-14",""]
["2017-02-15",""]
["2017-02-16",""]
["2017-02-17",""]
["2017-02-18",""]
["2017-02-19",""]
["2017-02-20",""]
["2017-02-21",""]
["2017-02-22",""]
["2017-02-23",""]
["2017-02-24",""]
["2017-02-25",""]
["2017-02-26",""]
["2017-02-27",""]
["2017-02-28",""]
["2017-03-01",""]
["2017-03-02",""]
["2017-03-03",""]
["2017-03-04",""]
["2017-03-05",""]
["2017-03-06",""]
["2017-03-07",{"$f":"queljourférié($A66)","v":""}]
["2017-03-08",""]
["2017-03-09",""]
["2017-03-10",""]
["2017-03-11",""]
["2017-03-12",""]
["2017-03-13",""]
["2017-03-14",""]
["2017-03-15",""]
["2017-03-16",""]
["2017-03-17",""]
["2017-03-18",""]
["2017-03-19",""]
["2017-03-20",""]
["2017-03-21",""]
["2017-03-22",""]
["2017-03-23",""]
["2017-03-24",""]
["2017-03-25",""]
["2017-03-26",""]
["2017-03-27",""]
["2017-03-28",""]
["2017-03-29",""]
["2017-03-30",""]
["2017-03-31",""]
["2017-04-01",""]
["2017-04-02",""]
["2017-04-03",""]
["2017-04-04",""]
["2017-04-05",""]
["2017-04-06",""]
["2017-04-07",""]
["2017-04-08",""]
["2017-04-09",""]
["2017-04-10",""]
["2017-04-11",""]
["2017-04-12",""]
["2017-04-13",""]
["2017-04-14",""]
["2017-04-15",""]
["2017-04-16","Pâques"]
["2017-04-17","Lundi de Pâques"]
["2017-04-18",""]
["2017-04-19",""]
["2017-04-20",""]
["2017-04-21",""]
["2017-04-22",""]
["2017-04-23",""]
["2017-04-24",""]
["2017-04-25",""]
["2017-04-26",""]
["2017-04-27",""]
["2017-04-28",""]
["2017-04-29",""]
["2017-04-30",""]
["2017-05-01","Fête du travail"]
["2017-05-02",""]
["2017-05-03",""]
["2017-05-04",""]
["2017-05-05",""]
["2017-05-06",""]
["2017-05-07",""]
["2017-05-08","Victoire de 1945"]
["2017-05-09",""]
["2017-05-10",{"$f":"queljourférié($A130)","v":""}]
["2017-05-11",""]
["2017-05-12",""]
["2017-05-13",""]
["2017-05-14",""]
["2017-05-15",""]
["2017-05-16",""]
["2017-05-17",""]
["2017-05-18",""]
["2017-05-19",""]
["2017-05-20",""]
["2017-05-21",""]
["2017-05-22",""]
["2017-05-23",""]
["2017-05-24",""]
["2017-05-25","Ascension"]
["2017-05-26",""]
["2017-05-27",""]
["2017-05-28",""]
["2017-05-29",""]
["2017-05-30",""]
["2017-05-31",""]
["2017-06-01",""]
["2017-06-02",""]
["2017-06-03",""]
["2017-06-04","Pentecôte"]
["2017-06-05","Lundi de Pentecôte"]
["2017-06-06",""]
["2017-06-07",""]
["2017-06-08",""]
["2017-06-09",""]
["2017-06-10",""]
["2017-06-11",""]
["2017-06-12",""]
["2017-06-13",""]
["2017-06-14",""]
["2017-06-15",""]
["2017-06-16",""]
["2017-06-17",""]
["2017-06-18",""]
["2017-06-19",""]
["2017-06-20",""]
["2017-06-21",""]
["2017-06-22",""]
["2017-06-23",""]
["2017-06-24",""]
["2017-06-25",""]
["2017-06-26",""]
["2017-06-27",""]
["2017-06-28",""]
["2017-06-29",""]
["2017-06-30",""]
["2017-07-01",""]
["2017-07-02",""]
["2017-07-03",""]
["2017-07-04",""]
["2017-07-05",""]
["2017-07-06",""]
["2017-07-07",""]
["2017-07-08",""]
["2017-07-09",""]
["2017-07-10",""]
["2017-07-11",""]
["2017-07-12",""]
["2017-07-13",{"$f":"queljourférié($A194)","v":""}]
["2017-07-14","Fête Nationale"]
["2017-07-15",""]
["2017-07-16",""]
["2017-07-17",""]
["2017-07-18",""]
["2017-07-19",""]
["2017-07-20",""]
["2017-07-21",""]
["2017-07-22",""]
["2017-07-23",""]
["2017-07-24",""]
["2017-07-25",""]
["2017-07-26",""]
["2017-07-27",""]
["2017-07-28",""]
["2017-07-29",""]
["2017-07-30",""]
["2017-07-31",""]
["2017-08-01",""]
["2017-08-02",""]
["2017-08-03",""]
["2017-08-04",""]
["2017-08-05",""]
["2017-08-06",""]
["2017-08-07",""]
["2017-08-08",""]
["2017-08-09",""]
["2017-08-10",""]
["2017-08-11",""]
["2017-08-12",""]
["2017-08-13",""]
["2017-08-14",""]
["2017-08-15","Assomption"]
["2017-08-16",""]
["2017-08-17",""]
["2017-08-18",""]
["2017-08-19",""]
["2017-08-20",""]
["2017-08-21",""]
["2017-08-22",""]
["2017-08-23",""]
["2017-08-24",""]
["2017-08-25",""]
["2017-08-26",""]
["2017-08-27",""]
["2017-08-28",""]
["2017-08-29",""]
["2017-08-30",""]
["2017-08-31",""]
["2017-09-01",""]
["2017-09-02",""]
["2017-09-03",""]
["2017-09-04",""]
["2017-09-05",""]
["2017-09-06",""]
["2017-09-07",""]
["2017-09-08",""]
["2017-09-09",""]
["2017-09-10",""]
["2017-09-11",""]
["2017-09-12",""]
["2017-09-13",""]
["2017-09-14",""]
["2017-09-15",{"$f":"queljourférié($A258)","v":""}]
["2017-09-16",""]
["2017-09-17",""]
["2017-09-18",""]
["2017-09-19",""]
["2017-09-20",""]
["2017-09-21",""]
["2017-09-22",""]
["2017-09-23",""]
["2017-09-24",""]
["2017-09-25",""]
["2017-09-26",""]
["2017-09-27",""]
["2017-09-28",""]
["2017-09-29",""]
["2017-09-30",""]
["2017-10-01",""]
["2017-10-02",""]
["2017-10-03",""]
["2017-10-04",""]
["2017-10-05",""]
["2017-10-06",""]
["2017-10-07",""]
["2017-10-08",""]
["2017-10-09",""]
["2017-10-10",""]
["2017-10-11",""]
["2017-10-12",""]
["2017-10-13",""]
["2017-10-14",""]
["2017-10-15",""]
["2017-10-16",""]
["2017-10-17",""]
["2017-10-18",""]
["2017-10-19",""]
["2017-10-20",""]
["2017-10-21",""]
["2017-10-22",""]
["2017-10-23",""]
["2017-10-24",""]
["2017-10-25",""]
["2017-10-26",""]
["2017-10-27",""]
["2017-10-28",""]
["2017-10-29",""]
["2017-10-30",""]
["2017-10-31",""]
["2017-11-01","Toussaint"]
["2017-11-02",""]
["2017-11-03",""]
["2017-11-04",""]
["2017-11-05",""]
["2017-11-06",""]
["2017-11-07",""]
["2017-11-08",""]
["2017-11-09",""]
["2017-11-10",""]
["2017-11-11","Armistice"]
["2017-11-12",""]
["2017-11-13",""]
["2017-11-14",""]
["2017-11-15",""]
["2017-11-16",""]
["2017-11-17",""]
["2017-11-18",{"$f":"queljourférié($A322)","v":""}]
["2017-11-19",""]
["2017-11-20",""]
["2017-11-21",""]
["2017-11-22",""]
["2017-11-23",""]
["2017-11-24",""]
["2017-11-25",""]
["2017-11-26",""]
["2017-11-27",""]
["2017-11-28",""]
["2017-11-29",""]
["2017-11-30",""]
["2017-12-01",""]
["2017-12-02",""]
["2017-12-03",""]
["2017-12-04",""]
["2017-12-05",""]
["2017-12-06",""]
["2017-12-07",""]
["2017-12-08",""]
["2017-12-09",""]
["2017-12-10",""]
["2017-12-11",""]
["2017-12-12",""]
["2017-12-13",""]
["2017-12-14",""]
["2017-12-15",""]
["2017-12-16",""]
["2017-12-17",""]
["2017-12-18",""]
["2017-12-19",""]
["2017-12-20",""]
["2017-12-21",""]
["2017-12-22",""]
["2017-12-23",""]
["2017-12-24",""]
["2017-12-25","Noël"]
["2017-12-26",""]
["2017-12-27",""]
["2017-12-28",""]
["2017-12-29",""]
["2017-12-30",""]
["2017-12-31",""]